fUST/lending_fUST_20260528
["ID","MTS","AMOUNT","RATE_DAILY","PERIOD"]
[423188853,1779912647000,-693.71,9.863e-05,2]
[423188857,1779912647000,-500.0,9.863e-05,2]
[423188856,1779912647000,-766.88,9.863e-05,2]
[423188855,1779912647000,-739.95,9.863e-05,2]
[423188861,1779912647000,-500.0,9.863e-05,2]
[423188854,1779912647000,-557.81,9.863e-05,2]
[423188860,1779912647000,-1562.37,9.863e-05,2]
[423188858,1779912647000,-500.0,9.863e-05,2]
[423188859,1779912647000,-500.0,9.863e-05,2]
[423188865,1779912647000,-751.15,9.863e-05,2]
[423188863,1779912647000,-2304.8,9.863e-05,2]
[423188862,1779912647000,-593.57,9.863e-05,2]
[423188864,1779912647000,-500.0,9.863e-05,2]
[423188866,1779912647000,-500.0,9.863e-05,2]
[423188867,1779912647000,-500.0,9.863e-05,2]
[423188807,1779912647000,-500.0,9.863e-05,2]
[423188835,1779912647000,-500.0,9.863e-05,2]
[423188830,1779912647000,-500.0,9.863e-05,2]
[423188844,1779912647000,-500.0,9.863e-05,2]
[423188837,1779912647000,-500.0,9.863e-05,2]
[423188800,1779912647000,-500.0,9.863e-05,2]
[423188868,1779912647000,-500.0,9.863e-05,2]
[423188804,1779912647000,-500.0,9.863e-05,2]
[423188806,1779912647000,-495.25523106,9.863e-05,2]
[423188808,1779912647000,-500.0,9.863e-05,2]
[423188809,1779912647000,-500.0,9.863e-05,2]
[423188811,1779912647000,-500.0,9.863e-05,2]
[423188813,1779912647000,-505.91,9.863e-05,2]
[423188824,1779912647000,-1981.07,9.863e-05,2]
[423188820,1779912647000,-500.0,9.863e-05,2]
[423188819,1779912647000,-500.0,9.863e-05,2]
[423188817,1779912647000,-500.0,9.863e-05,2]
[423188822,1779912647000,-500.0,9.863e-05,2]
[423188814,1779912647000,-500.0,9.863e-05,2]
[423188816,1779912647000,-500.0,9.863e-05,2]
[423188823,1779912647000,-500.0,9.863e-05,2]
[423188815,1779912647000,-500.0,9.863e-05,2]
[423188834,1779912647000,-1035.29,9.863e-05,2]
[423188812,1779912647000,-500.0,9.863e-05,2]
[423188838,1779912647000,-674.75,9.863e-05,2]
[423188836,1779912647000,-500.0,9.863e-05,2]
[423188829,1779912647000,-500.0,9.863e-05,2]
[423188833,1779912647000,-500.0,9.863e-05,2]
[423188831,1779912647000,-500.0,9.863e-05,2]
[423188832,1779912647000,-513.74,9.863e-05,2]
[423188827,1779912647000,-500.0,9.863e-05,2]
[423188825,1779912647000,-1274.28,9.863e-05,2]
[423188821,1779912647000,-500.0,9.863e-05,2]
[423188818,1779912647000,-500.0,9.863e-05,2]
[423188828,1779912647000,-500.0,9.863e-05,2]
[423188914,1779912648000,-151.0,0.0001,2]
[423188913,1779912648000,-151.0,0.0001,2]
[423188912,1779912648000,-151.0,0.0001,2]
[423188911,1779912648000,-151.0,0.0001,2]
[423188910,1779912648000,-151.0,0.0001,2]
[423188903,1779912648000,-151.0,0.0001,2]
[423188908,1779912648000,-151.0,0.0001,2]
[423188907,1779912648000,-151.0,0.0001,2]
[423188906,1779912648000,-151.0,0.0001,2]
[423188905,1779912648000,-151.0,0.0001,2]
[423188904,1779912648000,-151.0,0.0001,2]
[423188916,1779912648000,-151.0,0.0001,2]
[423188909,1779912648000,-151.0,0.0001,2]
[423188915,1779912648000,-151.0,0.0001,2]
[423188930,1779912648000,-912.06,0.00010136,2]
[423188917,1779912648000,-151.0,0.0001,2]
[423188921,1779912648000,-151.0,0.0001,2]
[423188922,1779912648000,-151.0,0.0001,2]
[423188919,1779912648000,-151.0,0.0001,2]
[423188920,1779912648000,-151.0,0.0001,2]
[423188923,1779912648000,-1021.97240585,0.000101,2]
[423188925,1779912648000,-500.0,0.00010136,2]
[423188924,1779912648000,-1234.9172,0.00010136,2]
[423188926,1779912648000,-500.0,0.00010136,2]
[423188927,1779912648000,-500.0,0.00010136,2]
[423188928,1779912648000,-500.0,0.00010136,2]
[423188929,1779912648000,-462.46,0.00010136,2]
[423188896,1779912648000,-3735.83700753,9.98e-05,2]
[423188918,1779912648000,-151.0,0.0001,2]
[423188895,1779912648000,-500.0,9.863e-05,2]
[423188869,1779912648000,-1631.26,9.863e-05,2]
[423188897,1779912648000,-1021.97240585,0.0001,2]
[423188932,1779912648000,-500.0,0.00010136,2]
[423188871,1779912648000,-680.05,9.863e-05,2]
[423188870,1779912648000,-642.67033973,9.863e-05,2]
[423188876,1779912648000,-1027.08,9.863e-05,2]
[423188872,1779912648000,-500.0,9.863e-05,2]
[423188873,1779912648000,-500.93,9.863e-05,2]
[423188877,1779912648000,-500.0,9.863e-05,2]
[423188874,1779912648000,-12161.88,9.863e-05,2]
[423188878,1779912648000,-500.0,9.863e-05,2]
[423188879,1779912648000,-2688.69,9.863e-05,2]
[423188880,1779912648000,-500.0,9.863e-05,2]
[423188881,1779912648000,-500.0,9.863e-05,2]
[423188888,1779912648000,-500.0,9.863e-05,2]
[423188883,1779912648000,-622.62,9.863e-05,2]
[423188889,1779912648000,-500.0,9.863e-05,2]
[423188884,1779912648000,-500.0,9.863e-05,2]
[423188885,1779912648000,-500.0,9.863e-05,2]
[423188882,1779912648000,-500.0,9.863e-05,2]
[423188891,1779912648000,-500.0,9.863e-05,2]
[423188886,1779912648000,-500.0,9.863e-05,2]
[423188887,1779912648000,-500.0,9.863e-05,2]
[423188890,1779912648000,-1635.04,9.863e-05,2]
[423188892,1779912648000,-650.44,9.863e-05,2]
[423188900,1779912648000,-3539.4946787,0.0001,2]
[423188893,1779912648000,-534.16,9.863e-05,2]
[423188894,1779912648000,-570.94827425,9.863e-05,2]
[423188899,1779912648000,-33529.73147793,0.0001,2]
[423188902,1779912648000,-160.0,0.0001,2]
[423188898,1779912648000,-2186.66285811,0.0001,2]
[423188901,1779912648000,-350.76392266,0.0001,2]
[423188933,1779912648000,-500.0,0.00010136,2]
[423188875,1779912648000,-500.0,9.863e-05,2]
[423188940,1779912648000,-500.0,0.00010136,2]
[423188969,1779912648000,-500.0,0.00010136,2]
[423188968,1779912648000,-500.0,0.00010136,2]
[423188971,1779912648000,-500.0,0.00010136,2]
[423188979,1779912648000,-513.74,0.00010136,2]
[423188981,1779912648000,-500.0,0.00010136,2]
[423188980,1779912648000,-1035.29,0.00010136,2]
[423188983,1779912648000,-664.42,0.00010136,2]
[423188982,1779912648000,-674.75,0.00010136,2]
[423188970,1779912648000,-500.0,0.00010136,2]
[423188972,1779912648000,-1981.07,0.00010136,2]
[423188975,1779912648000,-500.0,0.00010136,2]
[423188973,1779912648000,-1274.28,0.00010136,2]
[423188974,1779912648000,-500.0,0.00010136,2]
[423188967,1779912648000,-500.0,0.00010136,2]
[423188978,1779912648000,-500.0,0.00010136,2]
[423188976,1779912648000,-500.0,0.00010136,2]
[423188985,1779912648000,-2157.38,0.00010136,2]
[423188995,1779912648000,-1562.37,0.00010136,2]
[423188986,1779912648000,-500.0,0.00010136,2]
[423188984,1779912648000,-516.29,0.00010136,2]
[423188996,1779912648000,-593.57,0.00010136,2]
[423188988,1779912648000,-881.34,0.00010136,2]
[423188991,1779912648000,-557.81,0.00010136,2]
[423188987,1779912648000,-500.0,0.00010136,2]
[423188992,1779912648000,-739.95,0.00010136,2]
[423188990,1779912648000,-693.71,0.00010136,2]
[423188993,1779912648000,-766.88,0.00010136,2]
[423188994,1779912648000,-500.0,0.00010136,2]
[423188977,1779912648000,-342.65,0.00010136,2]
[423188963,1779912648000,-500.0,0.00010136,2]
[423188989,1779912648000,-652.94,0.00010136,2]
[423188964,1779912648000,-505.91,0.00010136,2]
[423188966,1779912648000,-500.0,0.00010136,2]
[423188942,1779912648000,-500.0,0.00010136,2]
[423188939,1779912648000,-500.0,0.00010136,2]
[423188936,1779912648000,-500.0,0.00010136,2]
[423188935,1779912648000,-500.0,0.00010136,2]
[423188941,1779912648000,-500.0,0.00010136,2]
[423188937,1779912648000,-500.0,0.00010136,2]
[423188931,1779912648000,-500.0,0.00010136,2]
[423188938,1779912648000,-500.0,0.00010136,2]
[423188944,1779912648000,-500.0,0.00010136,2]
[423188954,1779912648000,-500.0,0.00010136,2]
[423188955,1779912648000,-500.0,0.00010136,2]
[423188956,1779912648000,-500.0,0.00010136,2]
[423188943,1779912648000,-500.0,0.00010136,2]
[423188945,1779912648000,-500.0,0.00010136,2]
[423188934,1779912648000,-500.0,0.00010136,2]
[423188947,1779912648000,-500.0,0.00010136,2]
[423188946,1779912648000,-500.0,0.00010136,2]
[423188958,1779912648000,-500.0,0.00010136,2]
[423188960,1779912648000,-500.0,0.00010136,2]
[423188961,1779912648000,-500.0,0.00010136,2]
[423188959,1779912648000,-500.0,0.00010136,2]
[423188957,1779912648000,-500.0,0.00010136,2]
[423188962,1779912648000,-500.0,0.00010136,2]
[423188951,1779912648000,-592.64,0.00010136,2]
[423188949,1779912648000,-500.0,0.00010136,2]
[423188950,1779912648000,-500.0,0.00010136,2]
[423188952,1779912648000,-500.0,0.00010136,2]
[423188953,1779912648000,-500.0,0.00010136,2]
[423188948,1779912648000,-500.0,0.00010136,2]
[423188965,1779912648000,-500.0,0.00010136,2]
[423189033,1779912649000,-500.0,0.0001041,2]
[423189044,1779912649000,-500.0,0.0001041,2]
[423189028,1779912649000,-500.0,0.0001041,2]
[423189036,1779912649000,-500.0,0.0001041,2]
[423189034,1779912649000,-640.01,0.0001041,2]
[423189029,1779912649000,-500.0,0.0001041,2]
[423189026,1779912649000,-912.06,0.0001041,2]
[423189031,1779912649000,-500.0,0.0001041,2]
[423189035,1779912649000,-500.0,0.0001041,2]
[423189027,1779912649000,-500.0,0.0001041,2]
[423189030,1779912649000,-500.0,0.0001041,2]
[423189045,1779912649000,-500.0,0.0001041,2]
[423189041,1779912649000,-151.0,0.0001041,2]
[423189037,1779912649000,-151.0,0.0001041,2]
[423189047,1779912649000,-500.0,0.0001041,2]
[423189046,1779912649000,-500.0,0.0001041,2]
[423189039,1779912649000,-151.0,0.0001041,2]
[423189032,1779912649000,-500.0,0.0001041,2]
[423189038,1779912649000,-151.0,0.0001041,2]
[423189040,1779912649000,-1099.4086,0.0001041,2]
[423189042,1779912649000,-229.12,0.0001041,2]
[423189048,1779912649000,-500.0,0.0001041,2]
[423189049,1779912649000,-505.91,0.0001041,2]
[423189050,1779912649000,-500.0,0.0001041,2]
[423189051,1779912649000,-289.74,0.0001041,2]
[423189043,1779912649000,-500.0,0.0001041,2]
[423189025,1779912649000,-500.0,0.0001041,2]
[423189020,1779912649000,-1021.97240585,0.000102,2]
[423189023,1779912649000,-500.0,0.0001041,2]
[423189052,1779912649000,-500.0,0.0001041,2]
[423188998,1779912649000,-500.0,0.00010136,2]
[423189008,1779912649000,-2688.69,0.00010136,2]
[423189000,1779912649000,-1631.26,0.00010136,2]
[423188997,1779912649000,-2304.8,0.00010136,2]
[423189009,1779912649000,-500.0,0.00010136,2]
[423188999,1779912649000,-751.15,0.00010136,2]
[423189001,1779912649000,-680.05,0.00010136,2]
[423189005,1779912649000,-500.0,0.00010136,2]
[423189002,1779912649000,-500.0,0.00010136,2]
[423189007,1779912649000,-500.0,0.00010136,2]
[423189003,1779912649000,-500.93,0.00010136,2]
[423189004,1779912649000,-12161.88,0.00010136,2]
[423189010,1779912649000,-500.0,0.00010136,2]
[423189012,1779912649000,-500.0,0.00010136,2]
[423189011,1779912649000,-622.62,0.00010136,2]
[423189013,1779912649000,-500.0,0.00010136,2]
[423189016,1779912649000,-1635.04,0.00010136,2]
[423189014,1779912649000,-558.53,0.00010136,2]
[423189015,1779912649000,-500.0,0.00010136,2]
[423189017,1779912649000,-500.0,0.00010136,2]
[423189019,1779912649000,-534.16,0.00010136,2]
[423189021,1779912649000,-1021.97240585,0.000103,2]
[423189022,1779912649000,-1021.97240585,0.000104,2]
[423189024,1779912649000,-500.0,0.0001041,2]
[423189018,1779912649000,-650.44,0.00010136,2]
[423189006,1779912649000,-1027.08,0.00010136,2]
[423189057,1779912649000,-513.74,0.0001041,2]
[423189056,1779912649000,-500.0,0.0001041,2]
[423189087,1779912649000,-500.0,0.0001041,2]
[423189097,1779912649000,-1021.97240585,0.000105,2]
[423189098,1779912649000,-1021.97240585,0.000106,2]
[423189090,1779912649000,-500.0,0.0001041,2]
[423189088,1779912649000,-500.0,0.0001041,2]
[423189094,1779912649000,-500.0,0.0001041,2]
[423189086,1779912649000,-2688.69,0.0001041,2]
[423189092,1779912649000,-500.0,0.0001041,2]
[423189089,1779912649000,-622.62,0.0001041,2]
[423189093,1779912649000,-1635.04,0.0001041,2]
[423189091,1779912649000,-238.16,0.0001041,2]
[423189095,1779912649000,-650.44,0.0001041,2]
[423189099,1779912649000,-4023.49460962,0.00010603,2]
[423189100,1779912649000,-500.0,0.00010684,2]
[423189101,1779912649000,-330.28,0.00010684,2]
[423189110,1779912649000,-500.0,0.00010684,2]
[423189105,1779912649000,-500.0,0.00010684,2]
[423189106,1779912649000,-500.0,0.00010684,2]
[423189103,1779912649000,-912.06,0.00010684,2]
[423189107,1779912649000,-500.0,0.00010684,2]
[423189104,1779912649000,-500.0,0.00010684,2]
[423189109,1779912649000,-283.08953976,0.00010684,2]
[423189102,1779912649000,-500.0,0.00010684,2]
[423189108,1779912649000,-500.0,0.00010684,2]
[423189053,1779912649000,-1981.07,0.0001041,2]
[423189084,1779912649000,-1027.08,0.0001041,2]
[423189080,1779912649000,-500.0,0.0001041,2]
[423189096,1779912649000,-534.16,0.0001041,2]
[423189079,1779912649000,-680.05,0.0001041,2]
[423189055,1779912649000,-500.0,0.0001041,2]
[423189082,1779912649000,-12161.88,0.0001041,2]
[423189058,1779912649000,-1035.29,0.0001041,2]
[423189059,1779912649000,-500.0,0.0001041,2]
[423189054,1779912649000,-1274.28,0.0001041,2]
[423189060,1779912649000,-674.75,0.0001041,2]
[423189062,1779912649000,-516.29,0.0001041,2]
[423189072,1779912649000,-500.0,0.0001041,2]
[423189061,1779912649000,-664.42,0.0001041,2]
[423189063,1779912649000,-2157.38,0.0001041,2]
[423189064,1779912649000,-500.0,0.0001041,2]
[423189065,1779912649000,-500.0,0.0001041,2]
[423189068,1779912649000,-693.71,0.0001041,2]
[423189073,1779912649000,-1562.37,0.0001041,2]
[423189067,1779912649000,-652.94,0.0001041,2]
[423189074,1779912649000,-593.57,0.0001041,2]
[423189085,1779912649000,-500.0,0.0001041,2]
[423189081,1779912649000,-500.93,0.0001041,2]
[423189083,1779912649000,-194.89,0.0001041,2]
[423189075,1779912649000,-2304.8,0.0001041,2]
[423189077,1779912649000,-751.15,0.0001041,2]
[423189078,1779912649000,-1631.26,0.0001041,2]
[423189066,1779912649000,-881.34,0.0001041,2]
[423189070,1779912649000,-739.95,0.0001041,2]
[423189069,1779912649000,-557.81,0.0001041,2]
[423189071,1779912649000,-766.88,0.0001041,2]
[423189076,1779912649000,-500.0,0.0001041,2]
[423189157,1779912650000,-622.62,0.00010684,2]
[423189155,1779912650000,-500.0,0.00010684,2]
[423189160,1779912650000,-1635.04,0.00010684,2]
[423189152,1779912650000,-1027.08,0.00010684,2]
[423189159,1779912650000,-500.0,0.00010684,2]
[423189148,1779912650000,-680.05,0.00010684,2]
[423189139,1779912650000,-739.95,0.00010684,2]
[423189150,1779912650000,-500.93,0.00010684,2]
[423189137,1779912650000,-693.71,0.00010684,2]
[423189142,1779912650000,-1562.37,0.00010684,2]
[423189140,1779912650000,-766.88,0.00010684,2]
[423189138,1779912650000,-557.81,0.00010684,2]
[423189151,1779912650000,-12161.88,0.00010684,2]
[423189149,1779912650000,-500.0,0.00010684,2]
[423189170,1779912650000,-500.0,0.00010718,2]
[423189158,1779912650000,-500.0,0.00010684,2]
[423189156,1779912650000,-167.53,0.00010684,2]
[423189162,1779912650000,-650.44,0.00010684,2]
[423189164,1779912650000,-1021.97240585,0.000107,2]
[423189165,1779912650000,-1000.0,0.00010702,2]
[423189161,1779912650000,-500.0,0.00010684,2]
[423189173,1779912650000,-316.73276992,0.00010718,2]
[423189172,1779912650000,-537.6845,0.00010718,2]
[423189163,1779912650000,-534.16,0.00010684,2]
[423189167,1779912650000,-162.380719,0.00010718,2]
[423189166,1779912650000,-151.0,0.00010718,2]
[423189171,1779912650000,-210.08344815,0.00010718,2]
[423189141,1779912650000,-500.0,0.00010684,2]
[423189153,1779912650000,-500.0,0.00010684,2]
[423189146,1779912650000,-751.15,0.00010684,2]
[423189111,1779912650000,-412.88973355,0.00010684,2]
[423189145,1779912650000,-171.94,0.00010684,2]
[423189169,1779912650000,-156.78401659,0.00010718,2]
[423189112,1779912650000,-1099.4086,0.00010684,2]
[423189123,1779912650000,-1274.28,0.00010684,2]
[423189118,1779912650000,-214.56,0.00010684,2]
[423189114,1779912650000,-218.48,0.00010684,2]
[423189122,1779912650000,-1981.07,0.00010684,2]
[423189113,1779912650000,-500.0,0.00010684,2]
[423189117,1779912650000,-500.0,0.00010684,2]
[423189115,1779912650000,-500.0,0.00010684,2]
[423189119,1779912650000,-505.91,0.00010684,2]
[423189116,1779912650000,-500.0,0.00010684,2]
[423189121,1779912650000,-500.0,0.00010684,2]
[423189120,1779912650000,-500.0,0.00010684,2]
[423189144,1779912650000,-2304.8,0.00010684,2]
[423189129,1779912650000,-674.75,0.00010684,2]
[423189126,1779912650000,-513.74,0.00010684,2]
[423189124,1779912650000,-500.0,0.00010684,2]
[423189135,1779912650000,-881.34,0.00010684,2]
[423189133,1779912650000,-500.0,0.00010684,2]
[423189132,1779912650000,-2157.38,0.00010684,2]
[423189131,1779912650000,-516.29,0.00010684,2]
[423189127,1779912650000,-1035.29,0.00010684,2]
[423189128,1779912650000,-500.0,0.00010684,2]
[423189125,1779912650000,-500.0,0.00010684,2]
[423189134,1779912650000,-500.0,0.00010684,2]
[423189136,1779912650000,-652.94,0.00010684,2]
[423189143,1779912650000,-593.57,0.00010684,2]
[423189147,1779912650000,-1631.26,0.00010684,2]
[423189130,1779912650000,-664.42,0.00010684,2]
[423189168,1779912650000,-151.0,0.00010718,2]
[423189154,1779912650000,-2688.69,0.00010684,2]
[423189174,1779912650000,-290.42843114,0.00010746,2]
[423189201,1779912650000,-674.75,0.00010958,2]
[423189211,1779912650000,-739.95,0.00010958,2]
[423189212,1779912650000,-766.88,0.00010958,2]
[423189210,1779912650000,-557.81,0.00010958,2]
[423189208,1779912650000,-652.94,0.00010958,2]
[423189214,1779912650000,-1562.37,0.00010958,2]
[423189224,1779912650000,-500.0,0.00010958,2]
[423189225,1779912650000,-2688.69,0.00010958,2]
[423189213,1779912650000,-500.0,0.00010958,2]
[423189216,1779912650000,-2304.8,0.00010958,2]
[423189217,1779912650000,-751.15,0.00010958,2]
[423189215,1779912650000,-593.57,0.00010958,2]
[423189218,1779912650000,-1631.26,0.00010958,2]
[423189205,1779912650000,-500.0,0.00010958,2]
[423189219,1779912650000,-680.05,0.00010958,2]
[423189221,1779912650000,-500.93,0.00010958,2]
[423189223,1779912650000,-1027.08,0.00010958,2]
[423189222,1779912650000,-12161.88,0.00010958,2]
[423189226,1779912650000,-500.0,0.00010958,2]
[423189227,1779912650000,-622.62,0.00010958,2]
[423189228,1779912650000,-500.0,0.00010958,2]
[423189229,1779912650000,-500.0,0.00010958,2]
[423189230,1779912650000,-1635.04,0.00010958,2]
[423189234,1779912650000,-4521.7738859,0.00011225,2]
[423189236,1779912650000,-912.06,0.00011232,2]
[423189233,1779912650000,-534.16,0.00010958,2]
[423189231,1779912650000,-500.0,0.00010958,2]
[423189175,1779912650000,-1021.97240585,0.000108,2]
[423189220,1779912650000,-500.0,0.00010958,2]
[423189206,1779912650000,-554.22,0.00010958,2]
[423189232,1779912650000,-650.44,0.00010958,2]
[423189209,1779912650000,-693.71,0.00010958,2]
[423189183,1779912650000,-500.0,0.00010958,2]
[423189184,1779912650000,-500.0,0.00010958,2]
[423189185,1779912650000,-500.0,0.00010958,2]
[423189186,1779912650000,-1099.4086,0.00010958,2]
[423189178,1779912650000,-505.99,0.00010958,2]
[423189177,1779912650000,-218.4885836,0.00010944,2]
[423189179,1779912650000,-500.0,0.00010958,2]
[423189181,1779912650000,-500.0,0.00010958,2]
[423189207,1779912650000,-881.34,0.00010958,2]
[423189182,1779912650000,-500.0,0.00010958,2]
[423189176,1779912650000,-1021.97240585,0.000109,2]
[423189188,1779912650000,-500.0,0.00010958,2]
[423189198,1779912650000,-513.74,0.00010958,2]
[423189187,1779912650000,-500.0,0.00010958,2]
[423189180,1779912650000,-912.06,0.00010958,2]
[423189197,1779912650000,-500.0,0.00010958,2]
[423189204,1779912650000,-2157.38,0.00010958,2]
[423189199,1779912650000,-1035.29,0.00010958,2]
[423189202,1779912650000,-664.42,0.00010958,2]
[423189203,1779912650000,-516.29,0.00010958,2]
[423189200,1779912650000,-500.0,0.00010958,2]
[423189196,1779912650000,-500.0,0.00010958,2]
[423189195,1779912650000,-1274.28,0.00010958,2]
[423189192,1779912650000,-500.0,0.00010958,2]
[423189190,1779912650000,-500.0,0.00010958,2]
[423189191,1779912650000,-505.91,0.00010958,2]
[423189193,1779912650000,-500.0,0.00010958,2]
[423189235,1779912650000,-500.0,0.00011232,2]
[423189189,1779912650000,-500.0,0.00010958,2]
[423189194,1779912650000,-1981.07,0.00010958,2]
[423189277,1779912651000,-12161.88,0.00011232,2]
[423189288,1779912651000,-534.16,0.00011232,2]
[423189280,1779912651000,-2688.69,0.00011232,2]
[423189279,1779912651000,-500.0,0.00011232,2]
[423189274,1779912651000,-680.05,0.00011232,2]
[423189267,1779912651000,-766.88,0.00011232,2]
[423189272,1779912651000,-751.15,0.00011232,2]
[423189270,1779912651000,-593.57,0.00011232,2]
[423189269,1779912651000,-1562.37,0.00011232,2]
[423189271,1779912651000,-2304.8,0.00011232,2]
[423189273,1779912651000,-1631.26,0.00011232,2]
[423189275,1779912651000,-500.0,0.00011232,2]
[423189290,1779912651000,-537.6845,0.00011266,2]
[423189295,1779912651000,-200.502,0.00011421,2]
[423189278,1779912651000,-1027.08,0.00011232,2]
[423189285,1779912651000,-1635.04,0.00011232,2]
[423189282,1779912651000,-622.62,0.00011232,2]
[423189286,1779912651000,-500.0,0.00011232,2]
[423189281,1779912651000,-500.0,0.00011232,2]
[423189284,1779912651000,-500.0,0.00011232,2]
[423189283,1779912651000,-500.0,0.00011232,2]
[423189287,1779912651000,-650.44,0.00011232,2]
[423189292,1779912651000,-166.9453351,0.00011373,2]
[423189302,1779912651000,-500.0,0.00011506,2]
[423189303,1779912651000,-1099.4086,0.00011506,2]
[423189293,1779912651000,-2204.0,0.00011421,2]
[423189268,1779912651000,-500.0,0.00011232,2]
[423189289,1779912651000,-500.0,0.00011266,2]
[423189265,1779912651000,-557.81,0.00011232,2]
[423189251,1779912651000,-1274.28,0.00011232,2]
[423189266,1779912651000,-739.95,0.00011232,2]
[423189297,1779912651000,-912.06,0.00011506,2]
[423189237,1779912651000,-500.0,0.00011232,2]
[423189238,1779912651000,-500.0,0.00011232,2]
[423189240,1779912651000,-500.0,0.00011232,2]
[423189250,1779912651000,-1981.07,0.00011232,2]
[423189243,1779912651000,-500.0,0.00011232,2]
[423189246,1779912651000,-500.0,0.00011232,2]
[423189247,1779912651000,-505.91,0.00011232,2]
[423189239,1779912651000,-500.0,0.00011232,2]
[423189241,1779912651000,-500.0,0.00011232,2]
[423189245,1779912651000,-500.0,0.00011232,2]
[423189249,1779912651000,-500.0,0.00011232,2]
[423189248,1779912651000,-500.0,0.00011232,2]
[423189276,1779912651000,-500.93,0.00011232,2]
[423189244,1779912651000,-280.32,0.00011232,2]
[423189252,1779912651000,-500.0,0.00011232,2]
[423189261,1779912651000,-500.0,0.00011232,2]
[423189262,1779912651000,-881.34,0.00011232,2]
[423189264,1779912651000,-693.71,0.00011232,2]
[423189260,1779912651000,-2157.38,0.00011232,2]
[423189263,1779912651000,-652.94,0.00011232,2]
[423189253,1779912651000,-500.0,0.00011232,2]
[423189257,1779912651000,-674.75,0.00011232,2]
[423189255,1779912651000,-1035.29,0.00011232,2]
[423189254,1779912651000,-513.74,0.00011232,2]
[423189256,1779912651000,-500.0,0.00011232,2]
[423189258,1779912651000,-664.42,0.00011232,2]
[423189259,1779912651000,-516.29,0.00011232,2]
[423189242,1779912651000,-1099.4086,0.00011232,2]
[423189296,1779912651000,-561.52,0.00011506,2]
[423189299,1779912651000,-232.12,0.00011506,2]
[423189300,1779912651000,-500.0,0.00011506,2]
[423189332,1779912651000,-751.15,0.00011506,2]
[423189335,1779912651000,-500.0,0.00011506,2]
[423189334,1779912651000,-680.05,0.00011506,2]
[423189337,1779912651000,-12161.88,0.00011506,2]
[423189336,1779912651000,-500.93,0.00011506,2]
[423189333,1779912651000,-1631.26,0.00011506,2]
[423189340,1779912651000,-2688.69,0.00011506,2]
[423189345,1779912651000,-1635.04,0.00011506,2]
[423189338,1779912651000,-1027.08,0.00011506,2]
[423189344,1779912651000,-391.2,0.00011506,2]
[423189339,1779912651000,-500.0,0.00011506,2]
[423189343,1779912651000,-500.0,0.00011506,2]
[423189342,1779912651000,-622.62,0.00011506,2]
[423189347,1779912651000,-650.44,0.00011506,2]
[423189358,1779912651000,-151.0,0.0001178,2]
[423189357,1779912651000,-151.0,0.0001178,2]
[423189359,1779912651000,-151.0,0.0001178,2]
[423189348,1779912651000,-534.16,0.00011506,2]
[423189349,1779912651000,-648.0,0.00011683,2]